bitfinex/quotes_SOLUSD_20230402
["timestamp","ask_amount","ask_price","bid_price","bid_amount"]
[1680460928697,10.0,20.576,20.57,110.2157]
[1680460932408,10.0,20.576,20.564,20.0]
[1680460932622,10.0,20.574,20.564,20.0]
[1680460932906,10.0,20.572,20.564,20.0]
[1680460933313,10.0,20.572,20.563,20.0]
[1680460939720,14.33659602,20.584,20.58,62.77898086]
[1680460939928,7.28122241,20.581,20.58,62.77898086]
[1680460940310,27.28122241,20.581,20.58,62.77898086]
[1680460941903,44.28122241,20.581,20.58,62.77898086]
[1680460951216,27.28122241,20.581,20.58,62.77898086]
[1680460952333,44.28122241,20.581,20.58,62.77898086]
[1680460962133,14.33659602,20.584,20.58,62.77898086]
[1680460962331,10.0,20.587,20.58,62.77898086]
[1680460963549,10.0,20.585,20.58,62.77898086]
[1680460963730,17.0,20.584,20.58,62.77898086]
[1680460979957,31.60330343,20.584,20.58,62.77898086]
[1680460983553,17.0,20.584,20.58,62.77898086]
[1680460983864,17.0,20.583,20.58,62.77898086]
[1680460984261,10.0,20.583,20.58,62.77898086]
[1680460984449,17.0,20.582,20.58,62.77898086]
[1680460985465,10.0,20.583,20.58,62.77898086]
[1680460985663,17.0,20.582,20.58,62.77898086]
[1680460986067,10.0,20.583,20.58,62.77898086]
[1680460986262,17.0,20.582,20.58,62.77898086]
[1680460988259,10.0,20.583,20.58,62.77898086]
[1680460988462,17.0,20.582,20.58,62.77898086]
[1680460989465,10.0,20.583,20.58,62.77898086]
[1680460989662,17.0,20.582,20.58,62.77898086]
[1680460994575,27.0,20.581,20.58,62.77898086]
[1680461002977,17.0,20.581,20.58,62.77898086]
[1680461033014,14.74313228,20.585,20.58,62.77898086]
[1680461033217,3.4,20.588,20.58,62.77898086]
[1680461033519,20.4,20.588,20.58,62.77898086]
[1680461035218,3.4,20.588,20.58,62.77898086]
[1680461036316,3.4,20.588,20.581,118.8294]
[1680461044326,3.4,20.588,20.582,10.0]
[1680461044619,20.4,20.591,20.582,10.0]
[1680461045121,3.4,20.588,20.582,10.0]
[1680461046915,3.4,20.588,20.581,118.8294]
[1680461095461,20.4,20.588,20.581,118.8294]
[1680461097968,3.4,20.588,20.581,118.8294]
[1680461102469,13.4,20.588,20.581,118.8294]
[1680461102682,17.0,20.587,20.581,118.8294]
[1680461102847,10.0,20.586,20.581,118.8294]
[1680461103053,17.0,20.585,20.581,118.8294]
[1680461108264,17.0,20.585,20.58,62.77898086]
[1680461108569,10.0,20.584,20.58,62.77898086]
[1680461108765,10.0,20.582,20.58,62.77898086]
[1680461108965,17.0,20.581,20.58,62.77898086]
[1680461130997,10.0,20.582,20.58,62.77898086]
[1680461131190,17.0,20.581,20.58,62.77898086]
[1680461151803,24.28122241,20.581,20.58,62.77898086]
[1680461152793,44.28122241,20.581,20.58,62.77898086]
[1680461153608,151.50479224,20.581,20.58,62.77898086]
[1680461157016,10.0,20.58,20.57,115.5778]
[1680461157311,10.0,20.578,20.57,109.21977988]
[1680461157513,17.0,20.577,20.57,109.21977988]
[1680461157711,10.0,20.576,20.57,109.21977988]
[1680461157913,10.0,20.574,20.57,109.21977988]
[1680461158111,17.0,20.573,20.57,109.21977988]
[1680461158318,10.0,20.572,20.57,109.21977988]
[1680461158506,17.0,20.571,20.57,109.21977988]
[1680461158900,10.0,20.57,20.561,116.4597]
[1680461159116,10.0,20.568,20.561,116.4597]
[1680461159297,17.0,20.567,20.561,116.4597]
[1680461159504,10.0,20.566,20.561,116.4597]
[1680461159924,17.0,20.567,20.561,116.4597]
[1680461162113,17.0,20.569,20.561,116.4597]
[1680461173513,17.0,20.57,20.561,116.4597]
[1680461181448,10.68422241,20.569,20.551,19.450837]
[1680461181652,22.29,20.56,20.551,19.450837]
[1680461181848,27.0,20.559,20.551,19.450837]
[1680461182247,10.0,20.558,20.551,19.450837]
[1680461182441,17.0,20.557,20.551,19.450837]
[1680461182642,10.0,20.556,20.551,19.450837]
[1680461182859,17.0,20.555,20.551,19.450837]
[1680461183154,10.0,20.554,20.551,19.450837]
[1680461183339,10.0,20.552,20.551,19.450837]
[1680461183543,27.0,20.552,20.551,19.450837]
[1680461183747,180.0418848,20.552,20.551,19.450837]
[1680461184437,180.0418848,20.552,20.551,0.000837]
[1680461184641,180.0418848,20.552,20.515,118.0531]
[1680461184642,10.0,20.551,20.529,0.1176868]
[1680461184841,10.0,20.549,20.53,112.1399]
[1680461185057,10.0,20.547,20.53,112.1399]
[1680461185443,17.0,20.546,20.53,112.1399]
[1680461185644,10.0,20.545,20.53,112.1399]
[1680461185856,10.0,20.543,20.53,112.1399]
[1680461186152,17.0,20.542,20.53,112.1399]
[1680461186348,10.0,20.541,20.53,112.1399]
[1680461186545,17.0,20.54,20.53,112.1399]
[1680461186745,10.0,20.539,20.53,112.1399]
[1680461187344,10.0,20.541,20.53,112.1399]
[1680461187548,17.0,20.54,20.53,112.1399]
[1680461187745,10.0,20.539,20.53,112.1399]
[1680461187953,17.0,20.538,20.53,112.1399]
[1680461188348,10.0,20.539,20.53,112.1399]
[1680461188555,10.0,20.541,20.53,112.1399]
[1680461188859,17.0,20.54,20.53,112.1399]
[1680461189758,10.0,20.541,20.53,112.1399]
[1680461189965,10.0,20.543,20.53,112.1399]
[1680461191452,20.0,20.548,20.531,10.0]
[1680461191756,20.0,20.548,20.533,10.0]
[1680461191958,10.0,20.549,20.533,10.0]
[1680461192158,10.0,20.549,20.534,20.0]
[1680461192459,10.0,20.549,20.535,10.0]
[1680461193868,3.406,20.551,20.535,10.0]
[1680461194047,3.406,20.551,20.537,10.0]
[1680461196763,3.406,20.551,20.537,119.8759]
[1680461197148,28.24,20.55,20.537,119.8759]
[1680461197463,27.0,20.549,20.537,119.8759]
[1680461198568,27.0,20.549,20.537,109.8759]
[1680461200270,10.0,20.547,20.537,109.8759]
[1680461205372,10.0,20.545,20.537,109.8759]
[1680461206055,10.0,20.547,20.537,109.8759]
[1680461206257,17.0,20.546,20.537,109.8759]
[1680461206470,19.479007,20.548,20.538,10.0]
[1680461208466,140.68974262,20.56,20.538,10.0]
[1680461212167,10.0,20.549,20.537,109.8759]
[1680461212361,17.0,20.548,20.537,109.8759]
[1680461216285,10.0,20.548,20.537,109.8759]
[1680461216985,17.0,20.549,20.537,109.8759]
[1680461224481,10.0,20.548,20.537,109.8759]
[1680461225899,10.0,20.546,20.537,109.8759]
[1680461226387,17.0,20.545,20.537,109.8759]
[1680461226590,10.0,20.544,20.537,109.8759]
[1680461228584,17.0,20.543,20.53,112.1399]
[1680461228785,28.22,20.54,20.53,112.1399]
[1680461229183,10.0,20.539,20.53,112.1399]
[1680461229577,10.0,20.537,20.53,112.1399]
[1680461231778,10.0,20.535,20.53,112.1399]
[1680461232179,10.0,20.535,20.521,14.32017326]
[1680461235492,10.0,20.535,20.529,0.1176868]
[1680461236300,10.0,20.537,20.529,0.1176868]
[1680461240198,10.0,20.535,20.529,0.1176868]
[1680461243293,10.0,20.537,20.529,0.1176868]
[1680461243495,10.0,20.535,20.529,0.1176868]
[1680461243997,10.0,20.537,20.529,0.1176868]
[1680461244191,10.0,20.539,20.529,0.1176868]
[1680461244393,28.22,20.54,20.529,0.1176868]
[1680461247196,10.0,20.546,20.529,10.1176868]
[1680461248298,17.0,20.544,20.529,10.1176868]
[1680461248499,10.0,20.543,20.529,10.1176868]
[1680461249211,10.0,20.546,20.531,10.0]
[1680461250296,10.0,20.543,20.531,10.0]
[1680461254319,10.0,20.546,20.533,10.0]
[1680461259120,10.0,20.543,20.531,10.0]
[1680461259720,10.0,20.546,20.531,10.0]
[1680461259927,10.0,20.543,20.531,10.0]
[1680461261735,10.0,20.546,20.533,10.0]
[1680461263018,10.0,20.546,20.531,10.0]
[1680461263512,10.0,20.543,20.529,10.1176868]
[1680461263710,17.0,20.542,20.529,10.1176868]
[1680461264029,10.0,20.541,20.529,10.1176868]
[1680461265626,10.0,20.543,20.529,10.1176868]
[1680461265822,10.0,20.543,20.531,10.0]
[1680461266428,10.0,20.545,20.531,10.0]
[1680461269730,10.0,20.546,20.533,10.0]
[1680461271029,122.9606,20.548,20.533,10.0]
[1680461271425,122.9606,20.548,20.535,10.0]
[1680461273233,122.9606,20.548,20.533,10.0]
[1680461273532,122.9606,20.548,20.534,17.0]
[1680461277435,122.9606,20.548,20.533,10.0]
[1680461283431,122.9606,20.548,20.531,10.0]
[1680461283631,122.9606,20.548,20.533,10.0]
[1680461286834,122.9606,20.548,20.532,17.0]
[1680461292047,10.0,20.546,20.531,10.0]
[1680461292545,10.0,20.544,20.531,10.0]
[1680461293145,10.0,20.546,20.531,10.0]
[1680461293340,10.0,20.544,20.531,10.0]
[1680461293943,17.0,20.545,20.531,10.0]
[1680461295842,112.9606,20.548,20.532,17.0]
[1680461296041,112.9606,20.548,20.533,20.0]
[1680461296248,28.23,20.55,20.534,27.0]
[1680461296555,3.406,20.551,20.534,27.0]
[1680461296740,3.406,20.551,20.535,62.21461406]
[1680461296942,3.406,20.551,20.536,27.0]
[1680461297140,3.406,20.551,20.536,34.28122241]
[1680461297456,3.406,20.551,20.537,229.6842]
[1680461297641,3.406,20.551,20.538,27.0]
[1680461298150,3.406,20.551,20.539,10.0]
[1680461298343,3.406,20.551,20.54,17.0]
[1680461298545,3.406,20.551,20.541,10.0]
[1680461298753,3.406,20.551,20.543,10.0]
[1680461299165,3.406,20.551,20.545,10.0]
[1680461299647,3.406,20.551,20.547,10.0]
[1680461299855,3.406,20.551,20.549,10.0]
[1680461300855,3.406,20.551,20.547,10.0]
[1680461301160,3.406,20.551,20.548,17.0]
[1680461302246,3.406,20.551,20.549,10.0]
[1680461305555,3.406,20.551,20.548,17.0]
[1680461307275,3.406,20.551,20.549,10.0]
[1680461307568,3.406,20.551,20.55,17.0]
[1680461316758,3.406,20.551,20.548,17.0]
[1680461317463,3.406,20.551,20.547,10.0]
[1680461318873,3.406,20.551,20.549,10.0]
[1680461319074,3.406,20.551,20.55,17.0]
[1680461319677,3.406,20.551,20.549,10.0]
[1680461319877,3.406,20.551,20.55,17.0]
[1680461320573,3.406,20.551,20.549,10.0]
[1680461320774,3.406,20.551,20.55,17.0]
[1680461321364,3.406,20.551,20.549,10.0]
[1680461321574,3.406,20.551,20.55,17.0]
[1680461321970,3.406,20.551,20.549,10.0]
[1680461322158,3.406,20.551,20.55,17.0]
[1680461322975,3.406,20.551,20.548,17.0]
[1680461323363,3.406,20.551,20.547,10.0]
[1680461323364,3.406,20.551,20.545,10.0]
[1680461323559,3.406,20.551,20.544,10.0]
[1680461323759,3.406,20.551,20.541,29.458804]
[1680461323974,3.406,20.551,20.543,10.0]
[1680461324278,3.406,20.551,20.544,20.0]
[1680461325965,3.406,20.551,20.543,10.0]
[1680461326268,3.406,20.551,20.545,10.0]
[1680461326468,3.406,20.551,20.543,10.0]
[1680461326670,3.406,20.551,20.545,10.0]
[1680461326980,3.406,20.551,20.543,10.0]
[1680461327183,3.406,20.551,20.545,10.0]
[1680461327372,3.406,20.551,20.543,10.0]
[1680461327583,3.406,20.551,20.545,10.0]
[1680461327971,3.406,20.551,20.543,10.0]
[1680461328171,3.406,20.551,20.545,10.0]
[1680461328579,3.406,20.551,20.543,10.0]
[1680461328779,3.406,20.551,20.545,10.0]
[1680461328978,3.406,20.551,20.543,10.0]
[1680461329179,3.406,20.551,20.545,10.0]
[1680461329378,3.406,20.551,20.543,10.0]
[1680461329580,3.406,20.551,20.545,10.0]
[1680461329977,3.406,20.551,20.543,10.0]
[1680461330177,3.406,20.551,20.544,20.0]
[1680461332090,3.406,20.551,20.543,10.0]
[1680461332290,3.406,20.551,20.545,10.0]
[1680461332494,3.406,20.551,20.543,10.0]
[1680461332690,3.406,20.551,20.545,10.0]
[1680461332888,3.406,20.551,20.543,10.0]
[1680461333088,3.406,20.551,20.544,20.0]
[1680461334994,3.406,20.551,20.543,10.0]
[1680461335180,3.406,20.551,20.545,10.0]
[1680461335496,3.406,20.551,20.543,10.0]
[1680461335696,3.406,20.551,20.545,10.0]
[1680461335898,3.406,20.551,20.543,10.0]
[1680461336096,3.406,20.551,20.545,10.0]
[1680461336493,3.406,20.551,20.543,10.0]
[1680461336698,3.406,20.551,20.545,10.0]
[1680461336897,3.406,20.551,20.543,10.0]
[1680461337097,3.406,20.551,20.545,10.0]
[1680461337396,3.406,20.551,20.543,10.0]
[1680461337598,3.406,20.551,20.544,20.0]
[1680461341997,3.406,20.551,20.543,10.0]
[1680461342198,3.406,20.551,20.544,20.0]
[1680461344101,3.406,20.551,20.543,10.0]
[1680461344397,3.406,20.551,20.544,20.0]
[1680461345094,3.406,20.551,20.541,10.0]
[1680461345095,3.406,20.551,20.543,10.0]
[1680461345300,3.406,20.551,20.544,20.0]
[1680461347898,3.406,20.551,20.543,10.0]
[1680461348099,3.406,20.551,20.544,20.0]
[1680461349106,3.406,20.551,20.543,10.0]
[1680461349404,3.406,20.551,20.545,10.0]
[1680461349604,3.406,20.551,20.543,10.0]
[1680461349796,3.406,20.551,20.544,20.0]
[1680461352004,3.406,20.551,20.543,10.0]
[1680461352205,3.406,20.551,20.544,20.0]
[1680461354400,3.406,20.551,20.541,10.0]
[1680461354607,3.406,20.551,20.543,10.0]
[1680461354899,3.406,20.551,20.545,10.0]
[1680461355213,3.406,20.551,20.544,20.0]
[1680461357311,22.56,20.55,20.544,20.0]
[1680461357605,22.56,20.55,20.543,10.0]
[1680461357793,22.56,20.55,20.544,20.0]
[1680461358797,22.56,20.55,20.543,10.0]
[1680461359000,22.56,20.55,20.545,10.0]
[1680461359189,3.406,20.551,20.545,10.0]
[1680461359389,3.406,20.551,20.544,20.0]
[1680461359607,22.54,20.55,20.544,20.0]
[1680461361515,22.54,20.55,20.543,10.0]
[1680461361709,3.406,20.551,20.545,10.0]
[1680461361890,3.406,20.551,20.543,10.0]
[1680461362098,3.406,20.551,20.545,10.0]
[1680461362310,3.406,20.551,20.543,10.0]
[1680461362511,3.406,20.551,20.544,20.0]
[1680461362695,10.0,20.549,20.537,110.2785]
[1680461363013,17.0,20.548,20.532,10.0]
[1680461363211,10.0,20.547,20.532,10.0]
[1680461363417,17.0,20.546,20.532,10.0]
[1680461363811,10.0,20.547,20.532,10.0]
[1680461364305,10.0,20.545,20.532,10.0]
[1680461366619,17.0,20.546,20.532,10.0]
[1680461366809,10.0,20.547,20.532,10.0]
[1680461368015,10.0,20.549,20.532,10.0]
[1680461368200,10.0,20.547,20.532,10.0]
[1680461371012,10.0,20.547,20.534,10.0]
[1680461372416,17.0,20.548,20.534,10.0]
[1680461375420,10.0,20.547,20.534,10.0]
[1680461375622,17.0,20.546,20.534,10.0]
[1680461377327,17.0,20.546,20.533,30.0]
[1680461379420,17.0,20.546,20.534,10.0]
[1680461379626,10.0,20.547,20.534,10.0]
[1680461379827,10.0,20.545,20.534,10.0]
[1680461381520,17.0,20.546,20.534,10.0]
[1680461384241,17.0,20.546,20.533,30.0]
[1680461385034,10.0,20.545,20.533,20.0]
[1680461385331,10.0,20.543,20.533,20.0]
[1680461385531,17.0,20.542,20.534,20.0]
[1680461385731,17.0,20.542,20.532,20.0]
[1680461388336,10.0,20.539,20.531,10.0]
[1680461388536,10.0,20.539,20.532,20.0]
[1680461388730,28.12,20.54,20.532,20.0]
[1680461389631,28.12,20.54,20.529,0.1176868]
[1680461389834,10.0,20.539,20.529,0.1176868]
[1680461394827,10.0,20.537,20.529,0.1176868]
[1680461395540,10.0,20.539,20.529,0.1176868]
[1680461399151,28.24,20.54,20.529,0.1176868]
[1680461403452,10.0,20.538,20.529,0.1176868]
[1680461403835,28.24,20.54,20.529,0.1176868]
[1680461404248,10.0,20.549,20.53,7.28122241]
[1680461404451,10.0,20.549,20.531,47.0]
[1680461404744,28.14,20.55,20.532,10.0]
[1680461405053,10.0,20.549,20.534,10.0]
[1680461405951,10.0,20.545,20.534,10.0]
[1680461407751,17.0,20.546,20.534,10.0]
[1680461408553,10.0,20.546,20.534,10.0]
[1680461413357,27.0,20.547,20.534,10.0]
[1680461414462,17.0,20.547,20.534,10.0]
[1680461418058,28.14,20.55,20.534,10.0]
[1680461418564,10.0,20.546,20.534,10.0]
[1680461421679,10.0,20.547,20.534,10.0]
[1680461424057,28.14,20.55,20.536,10.0]
[1680461428164,28.22,20.55,20.536,10.0]
[1680461431966,28.22,20.55,20.534,10.0]
[1680461432156,22.41,20.55,20.536,10.0]
[1680461434272,22.41,20.55,20.534,10.0]
[1680461435058,10.0,20.547,20.534,10.0]
[1680461442966,10.0,20.545,20.533,30.0]
[1680461446284,10.0,20.547,20.533,30.0]
[1680461449283,17.0,20.546,20.533,30.0]
[1680461449474,10.0,20.545,20.533,30.0]
[1680461449674,10.0,20.545,20.533,20.0]
[1680461453291,17.0,20.546,20.533,20.0]
[1680461458499,17.0,20.546,20.534,20.0]
[1680461458697,17.0,20.546,20.535,10.0]
[1680461460503,10.0,20.549,20.535,10.0]
[1680461460701,10.0,20.547,20.535,10.0]
[1680461462935,32.41,20.55,20.535,10.0]
[1680461463301,10.0,20.549,20.535,10.0]
[1680461464319,22.41,20.55,20.536,17.0]
[1680461464623,22.41,20.55,20.537,10.0]
[1680461464825,22.41,20.55,20.539,10.0]
[1680461468726,22.41,20.55,20.538,17.0]
[1680461476533,22.41,20.55,20.539,10.0]
[1680461476743,22.41,20.55,20.54,17.0]
[1680461477035,22.41,20.55,20.541,10.0]
[1680461477731,70.6538,20.559,20.542,37.0]
[1680461477955,70.6538,20.559,20.542,44.28122241]
[1680461478235,6.809,20.559,20.543,10.0]
[1680461478420,6.809,20.559,20.544,37.0]
[1680461478617,6.809,20.559,20.545,10.0]
[1680461478841,16.809,20.559,20.547,10.0]
[1680461481340,3.406,20.551,20.548,17.0]
[1680461481635,3.406,20.551,20.547,10.0]
[1680461481838,3.406,20.551,20.549,10.0]
[1680461483837,3.406,20.551,20.55,17.0]
[1680461491543,3.406,20.551,20.545,10.0]
[1680461491732,3.406,20.551,20.546,17.0]
[1680461491927,3.406,20.551,20.546,10.0]
[1680461492126,3.406,20.551,20.547,17.0]
[1680461492326,3.406,20.551,20.546,10.0]
[1680461494444,3.406,20.551,20.544,20.0]
[1680461496045,3.406,20.551,20.543,10.0]
[1680461496341,3.406,20.551,20.544,20.0]
[1680461496549,3.406,20.551,20.542,20.0]
[1680461496730,3.406,20.551,20.54,20.0]
[1680461497144,3.406,20.551,20.541,10.0]
[1680461497344,3.406,20.551,20.543,10.0]
[1680461497546,3.406,20.551,20.544,20.0]
[1680461499335,3.406,20.551,20.543,10.0]
[1680461499632,3.406,20.551,20.544,20.0]
[1680461500557,3.406,20.551,20.543,10.0]
[1680461500743,3.406,20.551,20.544,20.0]
[1680461502459,3.406,20.551,20.543,10.0]
[1680461502638,3.406,20.551,20.544,20.0]
[1680461503443,3.406,20.551,20.543,10.0]
[1680461503630,3.406,20.551,20.544,20.0]
[1680461503836,3.406,20.551,20.545,10.0]
[1680461504540,3.406,20.551,20.544,20.0]
[1680461514563,3.406,20.551,20.543,10.0]
[1680461514759,3.406,20.551,20.545,10.0]
[1680461515357,3.406,20.551,20.544,17.0]
[1680461517062,3.406,20.551,20.544,10.0]
[1680461518468,3.406,20.551,20.543,17.0]
[1680461518668,3.406,20.551,20.545,10.0]
[1680461518966,3.406,20.551,20.543,17.0]
[1680461519173,3.406,20.551,20.545,10.0]
[1680461519670,3.406,20.551,20.544,10.0]
[1680461520176,3.406,20.551,20.543,17.0]
[1680461520366,3.406,20.551,20.545,10.0]
[1680461520567,3.406,20.551,20.547,10.0]
[1680461520870,3.406,20.551,20.545,10.0]
[1680461521066,3.406,20.551,20.546,17.0]
[1680461522153,3.406,20.551,20.545,10.0]
[1680461522354,3.406,20.551,20.546,17.0]
[1680461523568,3.406,20.551,20.545,10.0]
[1680461523751,3.406,20.551,20.546,17.0]
[1680461525373,3.406,20.551,20.543,24.30930194]
[1680461525569,3.406,20.551,20.545,10.0]
[1680461525771,3.406,20.551,20.546,17.0]
[1680461530365,3.406,20.551,20.547,10.0]
[1680461530571,3.406,20.551,20.548,17.0]
[1680461530767,3.406,20.551,20.549,10.0]
[1680461530969,3.406,20.551,20.55,17.0]
[1680461535680,3.406,20.551,20.549,10.0]
[1680461535885,3.406,20.551,20.55,17.0]
[1680461540582,3.406,20.551,20.545,10.0]
[1680461541892,3.406,20.551,20.547,10.0]
[1680461542094,3.406,20.551,20.548,17.0]
[1680461542587,3.406,20.551,20.547,10.0]
[1680461544594,3.406,20.551,20.545,10.0]
[1680461544793,3.406,20.551,20.547,10.0]
[1680461545512,3.406,20.551,20.545,10.0]
[1680461545994,3.406,20.551,20.534,396.3]
[1680461546195,3.406,20.551,20.546,10.0]
[1680461549294,3.406,20.551,20.538,250.00635719]
[1680461552190,3.406,20.551,20.54,22.56]
[1680461556308,3.406,20.551,20.541,17.28122241]
[1680461557099,3.406,20.551,20.545,10.0]
[1680461558409,3.406,20.551,20.544,17.0]
[1680461558807,3.406,20.551,20.541,17.28122241]
[1680461559010,3.406,20.551,20.545,10.0]
[1680461559303,3.406,20.551,20.544,20.0]
[1680461562509,10.0,20.549,20.544,20.0]
[1680461562903,10.0,20.549,20.54,20.0]
[1680461563102,10.0,20.549,20.54,10.0]
[1680461563302,10.0,20.549,20.541,20.0]
[1680461564013,10.0,20.549,20.54,10.0]
[1680461564313,10.0,20.549,20.541,20.0]
[1680461565521,10.0,20.549,20.54,10.0]
[1680461565712,10.0,20.549,20.541,20.0]
[1680461567218,10.0,20.549,20.54,10.0]
[1680461567413,10.0,20.549,20.542,10.0]
[1680461567615,27.97,20.55,20.541,20.0]
[1680461570406,27.97,20.55,20.539,20.0]
[1680461570717,27.97,20.55,20.54,10.0]
[1680461570922,27.97,20.55,20.542,10.0]
[1680461571221,27.97,20.55,20.541,20.0]
[1680461573411,27.97,20.55,20.54,10.0]
[1680461573612,27.97,20.55,20.541,20.0]
[1680461575545,27.97,20.55,20.54,10.0]
[1680461575727,27.97,20.55,20.541,20.0]
[1680461576930,27.97,20.55,20.54,10.0]
[1680461577226,27.97,20.55,20.541,20.0]
[1680461578314,27.97,20.55,20.54,10.0]
[1680461578622,27.97,20.55,20.541,20.0]
[1680461578830,27.97,20.55,20.54,10.0]
[1680461579024,10.0,20.548,20.537,115.8415]
[1680461579527,10.0,20.548,20.535,20.0]
[1680461579707,17.0,20.547,20.535,20.0]
[1680461579907,10.0,20.546,20.535,20.0]
[1680461581326,10.0,20.546,20.533,10.0]
[1680461581529,10.0,20.546,20.534,20.0]
[1680461581707,10.0,20.546,20.535,10.0]
[1680461581913,10.0,20.544,20.534,20.0]
[1680461584430,10.0,20.544,20.533,20.0]
[1680461584728,10.0,20.544,20.534,10.0]
[1680461585930,10.0,20.544,20.533,20.0]
[1680461586729,10.0,20.542,20.533,20.0]
[1680461587031,28.22,20.54,20.529,53.21641899]
[1680461587218,10.0,20.539,20.529,53.21641899]
[1680461587419,17.0,20.538,20.529,0.1176868]
[1680461587618,10.0,20.537,20.529,0.1176868]
[1680461589332,17.0,20.536,20.529,0.1176868]
[1680461589719,10.0,20.535,20.529,0.1176868]
[1680461590835,10.0,20.533,20.529,0.1176868]
[1680461594733,10.0,20.535,20.529,0.1176868]
[1680461594940,10.0,20.533,20.529,0.1176868]
[1680461596443,10.0,20.535,20.529,0.1176868]
[1680461596643,10.0,20.533,20.529,0.1176868]
[1680461597543,10.0,20.535,20.529,0.1176868]
[1680461601829,10.0,20.537,20.529,0.1176868]
[1680461602031,10.0,20.535,20.529,0.1176868]
[1680461604659,10.0,20.537,20.529,0.1176868]
[1680461609155,10.0,20.535,20.529,0.1176868]
[1680461609343,10.0,20.533,20.529,0.1176868]
[1680461612256,17.0,20.534,20.529,0.1176868]
[1680461614961,10.0,20.537,20.529,0.1176868]
[1680461617548,66.5,20.54,20.529,0.1176868]
[1680461617860,38.24,20.54,20.529,0.1176868]
[1680461618875,10.0,20.546,20.529,0.1176868]
[1680461623064,10.0,20.542,20.529,0.1176868]
[1680461637273,10.0,20.539,20.529,0.1176868]
[1680461641893,22.59,20.54,20.529,0.1176868]
[1680461642696,111.5357,20.547,20.531,10.0]
[1680461642989,111.5357,20.547,20.533,10.0]
[1680461643187,111.5357,20.547,20.534,37.0]
[1680461643493,111.5357,20.547,20.535,10.0]
[1680461643696,99.36847365,20.547,20.535,10.0]
[1680461644191,102.77447365,20.547,20.535,10.0]
[1680461646288,10.0,20.546,20.534,20.0]
[1680461646488,27.0,20.546,20.533,20.0]
[1680461646698,27.0,20.546,20.532,20.0]
[1680461658496,102.77447365,20.547,20.533,17.0]